fUSD/lending_fUSD_20250823
["ID","MTS","AMOUNT","RATE_DAILY","PERIOD"]
[380973355,1755913888727,-400.0,0.00014794,2]
[380973356,1755913888736,-400.0,0.00014794,2]
[380973357,1755913888746,-361.42020009,0.00014794,2]
[380973358,1755913888756,-400.0,0.00014794,2]
[380973359,1755913888766,-405.16600652,0.00014794,2]
[380973360,1755913888775,-400.0,0.00014794,2]
[380973361,1755913888785,-410.93,0.00014794,2]
[380973362,1755913888795,-400.0,0.00014794,2]
[380973363,1755913888804,-1033.44,0.00014794,2]
[380973364,1755913888820,-972.48,0.00014794,2]
[380973365,1755913888830,-400.0,0.00014794,2]
[380973366,1755913888840,-400.0,0.00014794,2]
[380973367,1755913888850,-768.78,0.00014794,2]
[380973368,1755913888861,-400.0,0.00014794,2]
[380973369,1755913888871,-570.64,0.00014794,2]
[380973370,1755913888882,-400.0,0.00014794,2]
[380973371,1755913888894,-412.10926465,0.00014794,2]
[380973372,1755913888905,-400.0,0.00014794,2]
[380973373,1755913888919,-400.0,0.00014794,2]
[380973374,1755913888932,-400.0,0.00014794,2]
[380973375,1755913888944,-400.0,0.00014794,2]
[380973376,1755913888957,-400.0,0.00014794,2]
[380973377,1755913888968,-400.0,0.00014794,2]
[380973378,1755913888977,-400.0,0.00014794,2]
[380973379,1755913888988,-167.86455532,0.00014794,2]
[380973380,1755913888998,-447.87,0.00014794,2]
[380973381,1755913889008,-400.0,0.00014794,2]
[380973382,1755913889018,-512.96,0.00014794,2]
[380973383,1755913889028,-400.0,0.00014794,2]
[380973384,1755913889039,-988.82,0.00014794,2]
[380973385,1755913889049,-400.0,0.00014794,2]
[380973386,1755913889059,-400.0,0.00014794,2]
[380973387,1755913889073,-400.0,0.00014794,2]
[380973388,1755913889083,-400.0,0.00014794,2]
[380973389,1755913889094,-400.0,0.00014794,2]
[380973390,1755913889104,-400.0,0.00014794,2]
[380973391,1755913889113,-413.51,0.00014794,2]
[380973392,1755913889123,-403.87143782,0.00014794,2]
[380973393,1755913889133,-400.0,0.00014794,2]
[380973394,1755913889143,-400.0,0.00014794,2]
[380973395,1755913889154,-2431.87,0.00014794,2]
[380973396,1755913889164,-400.0,0.00014794,2]
[380973397,1755913889174,-400.0,0.00014794,2]
[380973398,1755913889184,-151.0,0.00014794,2]
[380973399,1755913889194,-400.0,0.00014794,2]
[380973400,1755913889205,-400.0,0.00014794,2]
[380973401,1755913889215,-151.0,0.00014794,2]
[380973402,1755913889225,-400.0,0.00014794,2]
[380973403,1755913889234,-400.0,0.00014794,2]
[380973404,1755913889245,-400.0,0.00014794,2]
[380973405,1755913889255,-151.0,0.00014794,2]
[380973406,1755913889265,-400.0,0.00014794,2]
[380973407,1755913889276,-400.0,0.00014794,2]
[380973408,1755913889289,-853.54,0.00014794,2]
[380973409,1755913889298,-151.0,0.00014794,2]
[380973410,1755913889308,-151.0,0.00014794,2]
[380973411,1755913889322,-400.0,0.00014794,2]
[380973412,1755913889332,-400.0,0.00014794,2]
[380973413,1755913889343,-400.0,0.00014794,2]
[380973414,1755913889353,-400.0,0.00014794,2]
[380973415,1755913889364,-400.0,0.00014794,2]
[380973416,1755913889374,-400.0,0.00014794,2]
[380973417,1755913889383,-400.0,0.00014794,2]
[380973418,1755913889395,-400.0,0.00014794,2]
[380973419,1755913889405,-400.0,0.00014794,2]
[380973420,1755913889416,-489.91,0.00014794,2]
[380973421,1755913889426,-400.0,0.00014794,2]
[380973422,1755913889438,-400.0,0.00014794,2]
[380973423,1755913889448,-741.41,0.00014794,2]
[380973424,1755913889457,-400.0,0.00014794,2]
[380973425,1755913889469,-400.0,0.00014794,2]
[380973426,1755913889479,-400.0,0.00014794,2]
[380973427,1755913889490,-431.68,0.00014794,2]
[380973428,1755913889501,-498.52,0.00014794,2]
[380973429,1755913889511,-151.0,0.00014794,2]
[380973430,1755913889521,-400.0,0.00014794,2]
[380973431,1755913889532,-400.0,0.00014794,2]
[380973432,1755913889542,-617.2,0.00014794,2]
[380973433,1755913889553,-400.0,0.00014794,2]
[380973434,1755913889564,-400.0,0.00014794,2]
[380973435,1755913889575,-400.0,0.00014794,2]
[380973436,1755913889585,-400.0,0.00014794,2]
[380973437,1755913889595,-974.48,0.00014794,2]
[380973438,1755913889605,-400.0,0.00014794,2]
[380973439,1755913889615,-400.0,0.00014794,2]
[380973440,1755913889625,-400.0,0.00014794,2]
[380973441,1755913889635,-400.0,0.00014794,2]
[380973442,1755913889645,-400.0,0.00014794,2]
[380973443,1755913889654,-400.0,0.00014794,2]
[380973444,1755913889664,-400.0,0.00014794,2]
[380973445,1755913889675,-400.0,0.00014794,2]
[380973446,1755913889685,-432.93,0.00014794,2]
[380973447,1755913889696,-400.0,0.00014794,2]
[380973448,1755913889706,-528.94,0.00014794,2]
[380973449,1755913889716,-400.0,0.00014794,2]
[380973450,1755913889726,-400.0,0.00014794,2]
[380973451,1755913889736,-400.0,0.00014794,2]
[380973452,1755913889747,-400.0,0.00014794,2]
[380973453,1755913889757,-400.0,0.00014794,2]
[380973454,1755913889768,-400.0,0.00014794,2]
[380973455,1755913889778,-162.13298085,0.00014794,2]
[380973456,1755913889790,-1339.21,0.00014794,2]
[380973457,1755913889800,-458.74,0.00014794,2]
[380973458,1755913889811,-400.0,0.00014794,2]
[380973459,1755913889824,-400.0,0.00014794,2]
[380973460,1755913889835,-400.0,0.00014794,2]
[380973461,1755913889845,-400.0,0.00014794,2]
[380973462,1755913889855,-400.0,0.00014794,2]
[380973463,1755913889864,-400.0,0.00014794,2]
[380973464,1755913889875,-400.0,0.00014794,2]
[380973465,1755913889885,-400.0,0.00014794,2]
[380973466,1755913889896,-400.0,0.00014794,2]
[380973467,1755913889906,-400.0,0.00014794,2]
[380973468,1755913889920,-400.0,0.00014794,2]
[380973469,1755913889930,-400.0,0.00014794,2]
[380973470,1755913889942,-564.93,0.00014794,2]
[380973471,1755913889953,-400.0,0.00014794,2]
[380973472,1755913889963,-400.0,0.00014794,2]
[380973473,1755913889973,-400.0,0.00014794,2]
[380973474,1755913889984,-400.0,0.00014794,2]
[380973475,1755913889996,-475.75,0.00014794,2]
[380973476,1755913890006,-400.0,0.00014794,2]
[380973477,1755913890016,-737.21,0.00014794,2]
[380973478,1755913890025,-229.96185021,0.00014794,2]
[380973479,1755913890035,-400.0,0.00014794,2]
[380973480,1755913890044,-400.0,0.00014794,2]
[380973481,1755913890053,-163.12065184,0.00014794,2]
[380973482,1755913890064,-400.0,0.00014794,2]
[380973483,1755913890073,-400.0,0.00014794,2]
[380973484,1755913890082,-400.0,0.00014794,2]
[380973485,1755913890090,-400.0,0.00014794,2]
[380973486,1755913890099,-151.0,0.00014794,2]
[380973487,1755913890109,-400.0,0.00014794,2]
[380973488,1755913890118,-400.0,0.00014794,2]
[380973489,1755913890127,-527.5,0.00014794,2]
[380973490,1755913890136,-400.0,0.00014794,2]
[380973491,1755913890145,-400.0,0.00014794,2]
[380973492,1755913890155,-400.0,0.00014794,2]
[380973493,1755913890164,-400.0,0.00014794,2]
[380973494,1755913890173,-189.34612764,0.00014794,2]
[380973495,1755913890182,-400.0,0.00014794,2]
[380973496,1755913890191,-400.0,0.00014794,2]
[380973497,1755913890202,-400.0,0.00014794,2]
[380973498,1755913890211,-400.0,0.00014794,2]
[380973499,1755913890221,-530.43,0.00014794,2]
[380973500,1755913890230,-400.0,0.00014794,2]
[380973501,1755913890239,-1937.49,0.00014794,2]
[380973502,1755913890248,-544.96,0.00014794,2]
[380973503,1755913890259,-400.0,0.00014794,2]
[380973504,1755913890268,-400.0,0.00014794,2]
[380973505,1755913890277,-677.76,0.00014794,2]
[380973506,1755913890287,-151.0,0.00014794,2]
[380973507,1755913890296,-400.0,0.00014794,2]
[380973508,1755913890306,-400.0,0.00014794,2]
[380973509,1755913890316,-400.0,0.00014794,2]
[380973510,1755913890325,-400.0,0.00014794,2]
[380973511,1755913890335,-151.0,0.00014794,2]
[380973512,1755913890345,-400.0,0.00014794,2]
[380973513,1755913890354,-400.0,0.00014794,2]
[380973514,1755913890363,-400.0,0.00014794,2]
[380973515,1755913890372,-256.169608,0.00014794,2]
[380973516,1755913890381,-400.0,0.00014794,2]
[380973517,1755913890390,-400.0,0.00014794,2]
[380973518,1755913890400,-400.0,0.00014794,2]
[380973519,1755913890409,-400.0,0.00014794,2]
[380973520,1755913890418,-400.0,0.00014794,2]
[380973521,1755913890427,-400.0,0.00014794,2]
[380973522,1755913890436,-1000.0,0.00014794,2]
[380973523,1755913890446,-400.0,0.00014794,2]
[380973524,1755913890455,-79811.25,0.000148,2]
[380973525,1755913890464,-1000.0,0.00014821,2]
[380973526,1755913890473,-1000.0,0.00014821,2]
[380973527,1755913890482,-1000.0,0.00014821,2]
[380973528,1755913890492,-677.79852255,0.00014821,2]
[380973529,1755913890501,-1000.52857501,0.00014821,2]
[380973530,1755913890511,-391.49855359,0.00014821,2]
[380973531,1755913890520,-1000.0,0.00014821,2]
[380973532,1755913890530,-12872.85156033,0.00014843,2]
[380973533,1755913890539,-168.0,0.00014853,2]
[380973534,1755913890548,-221.86476741,0.000149,2]
[380973535,1755913890557,-221.86476741,0.000149,2]
[380973536,1755913890568,-1085.0,0.00014936,2]
[380973537,1755913890578,-209.74641064,0.00014936,2]
[380973538,1755913890587,-5000.0,0.00015,2]
[380973539,1755913890597,-168.0,0.00015017,2]
[380973540,1755913890607,-431.52,0.00015068,2]
[380973541,1755913890616,-152.86,0.00015068,2]
[380973542,1755913890625,-300.31,0.00015068,2]
[380973543,1755913890635,-400.0,0.00015068,2]
[380973544,1755913890644,-400.0,0.00015068,2]
[380973545,1755913890654,-400.0,0.00015068,2]
[380973546,1755913890663,-400.0,0.00015068,2]
[380973547,1755913890672,-428.82,0.00015068,2]
[380973548,1755913890682,-403.03002913,0.00015068,2]
[380973549,1755913890692,-400.0,0.00015068,2]
[380973550,1755913890701,-400.0,0.00015068,2]
[380973551,1755913890830,-400.0,0.00015068,2]
[380973552,1755913890841,-400.0,0.00015068,2]
[380973553,1755913890851,-400.0,0.00015068,2]
[380973554,1755913890860,-850.01,0.00015068,2]
[380973555,1755913890870,-400.0,0.00015068,2]
[380973556,1755913890880,-404.78627012,0.00015068,2]
[380973557,1755913890890,-436.74,0.00015068,2]
[380973558,1755913890900,-628.35,0.00015068,2]
[380973559,1755913890912,-703.68,0.00015068,2]
[380973560,1755913890922,-400.0,0.00015068,2]
[380973561,1755913890931,-576.98,0.00015068,2]
[380973562,1755913890941,-386.71425472,0.00015068,2]
[380973563,1755913890951,-402.93,0.00015068,2]
[380973564,1755913890960,-400.0,0.00015068,2]
[380973565,1755913890970,-672.8,0.00015068,2]
[380973566,1755913890980,-400.0,0.00015068,2]
[380973567,1755913890990,-400.0,0.00015068,2]
[380973568,1755913891000,-400.0,0.00015068,2]
[380973569,1755913891009,-402.42318847,0.00015068,2]
[380973570,1755913891019,-1000.0,0.00015068,2]
[380973571,1755913891029,-400.0,0.00015068,2]
[380973572,1755913891038,-459.35,0.00015068,2]
[380973573,1755913891048,-640.17,0.00015068,2]
[380973574,1755913891058,-400.0,0.00015068,2]
[380973575,1755913891069,-402.66034043,0.00015068,2]
[380973576,1755913891079,-400.0,0.00015068,2]
[380973577,1755913891089,-400.0,0.00015068,2]
[380973578,1755913891099,-400.0,0.00015068,2]
[380973579,1755913891109,-400.0,0.00015068,2]
[380973580,1755913891119,-400.0,0.00015068,2]
[380973581,1755913891128,-400.0,0.00015068,2]
[380973582,1755913891139,-400.0,0.00015068,2]
[380973583,1755913891150,-400.0,0.00015068,2]
[380973584,1755913891159,-408.41550053,0.00015068,2]
[380973585,1755913891169,-400.0,0.00015068,2]
[380973586,1755913891178,-400.0,0.00015068,2]
[380973587,1755913891188,-400.0,0.00015068,2]
[380973588,1755913891198,-531.18,0.00015068,2]
[380973589,1755913891207,-400.0,0.00015068,2]
[380973590,1755913891218,-400.0,0.00015068,2]
[380973591,1755913891227,-400.0,0.00015068,2]
[380973592,1755913891237,-300.00512742,0.00015068,2]
[380973593,1755913891247,-400.0,0.00015068,2]
[380973594,1755913891256,-400.0,0.00015068,2]
[380973595,1755913891266,-510.53,0.00015068,2]
[380973596,1755913891275,-400.0,0.00015068,2]
[380973597,1755913891286,-404.64763806,0.00015068,2]
[380973598,1755913891295,-472.27482594,0.00015068,2]
[380973599,1755913891307,-431.03,0.00015068,2]
[380973600,1755913891318,-177.64639406,0.00015068,2]
[380973601,1755913891327,-483.41,0.00015068,2]
[380973602,1755913891337,-400.0,0.00015068,2]
[380973603,1755913891347,-400.0,0.00015068,2]
[380973604,1755913891356,-400.0,0.00015068,2]
[380973605,1755913891366,-407.84482371,0.00015068,2]
[380973606,1755913891375,-1056.61,0.00015068,2]
[380973607,1755913891385,-400.0,0.00015068,2]
[380973608,1755913891394,-838.26,0.00015068,2]
[380973609,1755913891403,-400.0,0.00015068,2]
[380973610,1755913891412,-179.02728497,0.00015068,2]
[380973611,1755913891422,-423.47,0.00015068,2]
[380973612,1755913891431,-400.0,0.00015068,2]
[380973613,1755913891441,-484.92,0.00015068,2]
[380973614,1755913891451,-400.0,0.00015068,2]
[380973615,1755913891461,-405.99121552,0.00015068,2]
[380973616,1755913891470,-400.0,0.00015068,2]
[380973617,1755913891479,-400.0,0.00015068,2]
[380973618,1755913891489,-548.41,0.00015068,2]
[380973619,1755913891498,-403.70861453,0.00015068,2]
[380973620,1755913891507,-400.0,0.00015068,2]
[380973621,1755913891517,-400.0,0.00015068,2]
[380973622,1755913891526,-400.0,0.00015068,2]
[380973623,1755913891536,-404.49406043,0.00015068,2]
[380973624,1755913891545,-403.10177115,0.00015068,2]
[380973625,1755913891554,-400.0,0.00015068,2]
[380973626,1755913891564,-400.0,0.00015068,2]
[380973627,1755913891573,-400.0,0.00015068,2]
[380973628,1755913891582,-400.0,0.00015068,2]
[380973629,1755913891592,-405.43401503,0.00015068,2]
[380973630,1755913891601,-400.0,0.00015068,2]
[380973631,1755913891611,-400.0,0.00015068,2]
[380973632,1755913891620,-400.0,0.00015068,2]
[380973633,1755913891630,-507.57563127,0.00015068,2]
[380973634,1755913891639,-400.0,0.00015068,2]
[380973635,1755913891649,-623.13,0.00015068,2]
[380973636,1755913891659,-400.0,0.00015068,2]
[380973637,1755913891668,-403.20353378,0.00015068,2]
[380973638,1755913891678,-404.59829454,0.00015068,2]
[380973639,1755913891687,-400.0,0.00015068,2]
[380973640,1755913891697,-400.0,0.00015068,2]
[380973641,1755913891707,-400.0,0.00015068,2]
[380973642,1755913891716,-400.0,0.00015068,2]
[380973643,1755913891726,-400.0,0.00015068,2]
[380973644,1755913891736,-407.0,0.00015068,2]
[380973645,1755913891746,-409.68925498,0.00015068,2]
[380973646,1755913891756,-400.0,0.00015068,2]
[380973647,1755913891766,-498.27784861,0.00015068,2]
[380973648,1755913891777,-478.84,0.00015068,2]
[380973649,1755913891786,-400.0,0.00015068,2]
[380973650,1755913891796,-699.87,0.00015068,2]
[380973651,1755913891806,-400.0,0.00015068,2]
[380973652,1755913891815,-400.0,0.00015068,2]
[380973653,1755913891825,-378.99443474,0.00015068,2]
[380973654,1755913891835,-400.0,0.00015068,2]
[380973655,1755913891845,-400.0,0.00015068,2]
[380973656,1755913891855,-400.0,0.00015068,2]
[380973657,1755913891865,-400.0,0.00015068,2]
[380973658,1755913891876,-310.90002095,0.00015068,2]
[380973659,1755913891886,-400.0,0.00015068,2]
[380973660,1755913891895,-400.0,0.00015068,2]
[380973661,1755913891905,-400.0,0.00015068,2]
[380973662,1755913891918,-400.0,0.00015068,2]
[380973663,1755913891928,-400.0,0.00015068,2]
[380973664,1755913891938,-400.0,0.00015068,2]
[380973665,1755913891947,-517.23,0.00015068,2]
[380973666,1755913891958,-593.82,0.00015068,2]
[380973667,1755913891967,-400.0,0.00015068,2]
[380973668,1755913891977,-400.0,0.00015068,2]
[380973669,1755913891987,-400.0,0.00015068,2]
[380973670,1755913891997,-400.0,0.00015068,2]
[380973671,1755913892008,-553.41,0.00015068,2]
[380973672,1755913892017,-400.0,0.00015068,2]
[380973673,1755913892026,-400.0,0.00015068,2]
[380973674,1755913892035,-334.6827157,0.00015068,2]
[380973675,1755913892044,-611.05,0.00015068,2]
[380973676,1755913892054,-400.0,0.00015068,2]
[380973677,1755913892064,-400.0,0.00015068,2]
[380973678,1755913892074,-423.01,0.00015068,2]
[380973679,1755913892083,-400.0,0.00015068,2]
[380973680,1755913892093,-263.09955952,0.00015068,2]
[380973681,1755913892102,-400.0,0.00015068,2]
[380973682,1755913892112,-400.0,0.00015068,2]
[380973683,1755913892121,-762.19,0.00015068,2]
[380973684,1755913892130,-400.0,0.00015068,2]
[380973685,1755913892140,-411.93,0.00015068,2]
[380973686,1755913892149,-400.0,0.00015068,2]
[380973687,1755913892158,-400.0,0.00015068,2]
[380973688,1755913892168,-632.91,0.00015068,2]
[380973689,1755913892178,-400.0,0.00015068,2]
[380973690,1755913892187,-544.96,0.00015068,2]
[380973691,1755913892197,-400.0,0.00015068,2]
[380973692,1755913892207,-400.0,0.00015068,2]
[380973693,1755913892216,-400.0,0.00015068,2]
[380973694,1755913892225,-400.0,0.00015068,2]
[380973695,1755913892234,-400.0,0.00015068,2]
[380973696,1755913892243,-400.0,0.00015068,2]
[380973697,1755913892253,-400.0,0.00015068,2]
[380973698,1755913892262,-400.0,0.00015068,2]
[380973699,1755913892272,-400.0,0.00015068,2]
[380973700,1755913892281,-400.0,0.00015068,2]
[380973701,1755913892291,-151.0,0.00015068,2]
[380973702,1755913892301,-400.0,0.00015068,2]
[380973703,1755913892310,-400.0,0.00015068,2]
[380973704,1755913892321,-844.69,0.00015068,2]
[380973705,1755913892331,-400.0,0.00015068,2]
[380973706,1755913892340,-400.0,0.00015068,2]
[380973707,1755913892350,-400.0,0.00015068,2]
[380973708,1755913892360,-400.0,0.00015068,2]
[380973709,1755913892369,-400.0,0.00015068,2]
[380973710,1755913892379,-496.47,0.00015068,2]
[380973711,1755913892389,-400.0,0.00015068,2]
[380973712,1755913892398,-720.25,0.00015068,2]
[380973713,1755913892408,-400.0,0.00015068,2]
[380973714,1755913892417,-400.0,0.00015068,2]
[380973715,1755913892427,-400.0,0.00015068,2]
[380973716,1755913892437,-400.0,0.00015068,2]
[380973717,1755913892446,-544.66,0.00015068,2]
[380973718,1755913892456,-400.0,0.00015068,2]
[380973719,1755913892465,-629.0,0.00015068,2]
[380973720,1755913892475,-400.0,0.00015068,2]
[380973721,1755913892485,-412.46,0.00015068,2]
[380973722,1755913892494,-151.0,0.00015068,2]
[380973723,1755913892504,-400.0,0.00015068,2]
[380973724,1755913892513,-400.0,0.00015068,2]
[380973725,1755913892522,-400.0,0.00015068,2]
[380973726,1755913892531,-743.06,0.00015068,2]
[380973727,1755913892540,-400.0,0.00015068,2]
[380973728,1755913892550,-176.988147,0.00015068,2]
[380973729,1755913892559,-481.80827086,0.00015068,2]
[380973730,1755913892570,-400.0,0.00015068,2]
[380973731,1755913892579,-179.327155,0.00015068,2]
[380973732,1755913892588,-400.0,0.00015068,2]
[380973733,1755913892597,-400.0,0.00015068,2]
[380973734,1755913892607,-738.74,0.00015068,2]
[380973735,1755913892616,-189.395982,0.00015068,2]
[380973736,1755913892626,-400.0,0.00015068,2]
[380973737,1755913892635,-400.0,0.00015068,2]
[380973738,1755913892645,-400.0,0.00015068,2]
[380973739,1755913892656,-400.0,0.00015068,2]
[380973740,1755913892665,-151.0,0.00015068,2]
[380973741,1755913892675,-400.0,0.00015068,2]
[380973742,1755913892684,-400.0,0.00015068,2]
[380973743,1755913892693,-400.0,0.00015068,2]
[380973744,1755913892702,-771.86,0.00015068,2]
[380973745,1755913892711,-192.74781026,0.00015068,2]
[380973746,1755913892721,-184.42509576,0.00015068,2]
[380973747,1755913892730,-151.0,0.00015068,2]
[380973748,1755913892739,-400.0,0.00015068,2]
[380973749,1755913892749,-151.0,0.00015068,2]
[380973750,1755913892758,-151.0,0.00015068,2]
[380973751,1755913892767,-198.434675,0.00015068,2]
[380973752,1755913892777,-151.0,0.00015068,2]
[380973753,1755913892786,-400.0,0.00015068,2]
[380973754,1755913892795,-403.3879264,0.00015068,2]
[380973755,1755913892804,-400.0,0.00015068,2]
[380973756,1755913892814,-721.01,0.00015068,2]
[380973757,1755913892824,-400.0,0.00015068,2]
[380973758,1755913892834,-151.0,0.00015068,2]
[380973759,1755913892844,-455.54,0.00015068,2]
[380973760,1755913892853,-400.0,0.00015068,2]
[380973761,1755913892863,-400.0,0.00015068,2]
[380973762,1755913892873,-151.742083,0.00015068,2]
[380973763,1755913892882,-482.17662571,0.00015068,2]
[380973764,1755913892891,-992.24,0.00015068,2]
[380973765,1755913892901,-477.60474756,0.00015068,2]
[380973766,1755913892916,-400.0,0.00015068,2]
[380973767,1755913892926,-400.0,0.00015068,2]
[380973768,1755913892935,-400.0,0.00015068,2]
[380973769,1755913892945,-400.0,0.00015068,2]
[380973770,1755913892956,-531.41,0.00015068,2]
[380973771,1755913892966,-400.0,0.00015068,2]
[380973772,1755913892975,-297.493573,0.00015068,2]
[380973773,1755913892985,-422.75,0.00015068,2]
[380973774,1755913892995,-859.01,0.00015068,2]
[380973775,1755913893004,-400.0,0.00015068,2]
[380973776,1755913893014,-400.0,0.00015068,2]
[380973777,1755913893024,-445.23,0.00015068,2]
[380973778,1755913893033,-400.0,0.00015068,2]
[380973779,1755913893042,-400.0,0.00015068,2]
[380973780,1755913893052,-194.145492,0.00015068,2]
[380973781,1755913893062,-401.36,0.00015068,2]
[380973782,1755913893072,-194.145492,0.00015068,2]
[380973783,1755913893420,-400.0,0.00015068,2]
[380973784,1755913893430,-688.63,0.00015068,2]
[380973785,1755913893439,-194.145492,0.00015068,2]
[380973786,1755913893449,-400.0,0.00015068,2]
[380973787,1755913893458,-400.0,0.00015068,2]
[380973788,1755913893468,-194.145492,0.00015068,2]
[380973789,1755913893478,-400.0,0.00015068,2]
[380973790,1755913893490,-530.94,0.00015068,2]
[380973791,1755913893500,-400.0,0.00015068,2]
[380973792,1755913893510,-405.74727331,0.00015068,2]
[380973793,1755913893520,-546.21,0.00015068,2]
[380973794,1755913893530,-400.0,0.00015068,2]
[380973795,1755913893540,-400.0,0.00015068,2]
[380973796,1755913893550,-403.74262057,0.00015068,2]
[380973797,1755913893560,-790.02,0.00015068,2]
[380973798,1755913893572,-400.0,0.00015068,2]
[380973799,1755913893583,-400.0,0.00015068,2]
[380973800,1755913893593,-155.6022392,0.00015068,2]
[380973801,1755913893603,-724.94,0.00015068,2]
[380973802,1755913893614,-264.73354271,0.00015068,2]
[380973803,1755913893624,-400.0,0.00015068,2]
[380973804,1755913893634,-619.77,0.00015068,2]
[380973805,1755913893645,-403.69266922,0.00015068,2]
[380973806,1755913893655,-400.0,0.00015068,2]
[380973807,1755913893666,-400.0,0.00015068,2]
[380973808,1755913893676,-449.47,0.00015068,2]
[380973809,1755913893686,-402.91155743,0.00015068,2]
[380973810,1755913893697,-400.0,0.00015068,2]
[380973811,1755913893707,-400.0,0.00015068,2]
[380973812,1755913893717,-606.43,0.00015068,2]
[380973813,1755913893727,-400.0,0.00015068,2]
[380973814,1755913893736,-817.92,0.00015068,2]
[380973815,1755913893747,-400.0,0.00015068,2]
[380973816,1755913893757,-404.23,0.00015068,2]
[380973817,1755913893767,-823.38,0.00015068,2]
[380973818,1755913893776,-151.284026,0.00015068,2]
[380973819,1755913893786,-871.5,0.00015068,2]
[380973820,1755913893796,-400.0,0.00015068,2]
[380973821,1755913893806,-446.49802509,0.00015068,2]
[380973822,1755913893818,-400.0,0.00015068,2]
[380973823,1755913893829,-2930.54,0.00015068,2]
[380973824,1755913893839,-400.0,0.00015068,2]
[380973825,1755913893849,-400.0,0.00015068,2]
[380973826,1755913893860,-151.0,0.00015068,2]
[380973827,1755913893870,-400.0,0.00015068,2]
[380973828,1755913893880,-400.0,0.00015068,2]
[380973829,1755913893889,-162.69038053,0.00015068,2]
[380973830,1755913893900,-400.0,0.00015068,2]
[380973831,1755913893911,-400.0,0.00015068,2]
[380973832,1755913893921,-400.0,0.00015068,2]
[380973833,1755913893931,-400.0,0.00015068,2]
[380973834,1755913893941,-400.0,0.00015068,2]
[380973835,1755913893960,-467.49,0.00015068,2]
[380973836,1755913893972,-160.85117665,0.00015068,2]
[380973837,1755913893984,-403.82402095,0.00015068,2]
[380973838,1755913893997,-151.0,0.00015068,2]
[380973839,1755913894007,-400.0,0.00015068,2]
[380973840,1755913894018,-400.0,0.00015068,2]
[380973841,1755913894030,-406.97509156,0.00015068,2]
[380973842,1755913894040,-369.07176059,0.00015068,2]
[380973843,1755913894051,-152.455755,0.00015068,2]
[380973844,1755913894061,-400.0,0.00015068,2]
[380973845,1755913894071,-403.4960545,0.00015068,2]
[380973846,1755913894082,-400.0,0.00015068,2]
[380973847,1755913894092,-400.0,0.00015068,2]
[380973848,1755913894103,-151.0,0.00015068,2]
[380973849,1755913894113,-400.0,0.00015068,2]
[380973850,1755913894124,-400.0,0.00015068,2]
[380973851,1755913894134,-400.0,0.00015068,2]
[380973852,1755913894144,-400.0,0.00015068,2]
[380973853,1755913894154,-467.98,0.00015068,2]
[380973854,1755913894165,-530.18,0.00015068,2]